bitfinex-derivatives/quotes_ETHF0:USTF0_20240923
["timestamp","ask_amount","ask_price","bid_price","bid_amount"]
[1727115700040,0.37366,2676.1,2676.0,0.37366]
[1727115700437,0.38366,2676.1,2676.0,0.37366]
[1727115700748,0.01,2676.1,2676.0,4.11046]
[1727115703842,0.38365,2676.1,2676.0,4.11046]
[1727115704045,0.01,2676.1,2676.0,4.11046]
[1727115704436,0.01,2676.1,2675.9,3.2078]
[1727115704640,1.30785,2676.0,2675.9,3.2078]
[1727115704940,1.30785,2676.0,2675.9,3.58148]
[1727115705648,0.37367,2676.0,2675.9,3.58148]
[1727115706540,0.38366,2676.1,2676.0,0.37367]
[1727115707139,0.01,2676.1,2676.0,0.37367]
[1727115708142,0.01,2676.1,2676.0,4.11047]
[1727115710346,1.85418725,2676.1,2676.0,4.11047]
[1727115710648,0.38365,2676.1,2676.0,0.95787202]
[1727115710849,1.85155421,2676.1,2676.0,0.95787202]
[1727115711044,1.85155421,2676.1,2676.0,4.69465117]
[1727115711342,0.38365,2676.1,2676.0,0.3713]
[1727115711543,3.27696022,2676.1,2676.0,0.3713]
[1727115711746,1.30789,2675.9,2675.8,0.3736]
[1727115711948,2.77622809,2675.9,2675.8,0.95782729]
[1727115712842,1.84201809,2675.9,2675.8,0.95782729]
[1727115714351,1.84201809,2675.9,2675.8,1.33152729]
[1727115714554,1.84201809,2675.9,2675.8,1.33151984]
[1727115716552,0.37368,2675.9,2675.8,1.33151984]
[1727115716754,0.37368,2675.9,2675.8,3.97782619]
[1727115717052,0.37368,2675.9,2675.8,2.51264365]
[1727115717246,0.37368,2676.0,2675.9,0.37367]
[1727115717441,0.37368,2676.0,2675.9,1.9313292]
[1727115718049,0.38367,2676.1,2676.0,0.37367]
[1727115718451,0.38367,2676.1,2676.0,0.95784364]
[1727115718654,0.01,2676.1,2676.0,44.91047]
[1727115718855,0.01,2676.1,2676.0,46.81808936]
[1727115719360,0.01,2676.1,2676.0,46.77883]
[1727115719659,0.01,2676.1,2676.0,47.75226936]
[1727115720358,1.84193809,2676.5,2676.2,0.93409]
[1727115720661,0.3736,2676.5,2676.4,0.37361]
[1727115724554,0.37361,2676.4,2676.3,1.12352]
[1727115724754,2.33278022,2676.4,2676.3,1.12352]
[1727115725049,0.37361,2676.4,2676.3,1.12352]
[1727115725252,0.37361,2676.4,2676.3,0.37362]
[1727115725663,0.37365,2676.1,2676.0,4.35946]
[1727115725857,1.84171544,2676.1,2676.0,4.35946]
[1727115726668,1.84170544,2676.2,2676.1,0.37365]
[1727115726964,0.37364,2676.2,2676.1,0.37365]
[1727115727263,1.84170544,2676.2,2676.1,0.37365]
[1727115727459,0.37364,2676.2,2676.1,0.37365]
[1727115728363,0.37364,2676.2,2676.1,0.95779411]
[1727115728561,1.84170544,2676.2,2676.1,0.95779411]
[1727115728860,1.84170544,2676.2,2676.1,0.37365]
[1727115729164,1.84170544,2676.2,2676.1,0.95780111]
[1727115729462,0.37364,2676.2,2676.1,0.95780111]
[1727115729684,0.37364,2676.2,2676.1,0.93414]
[1727115729685,1.46839501,2676.2,2676.1,0.93414]
[1727115729853,1.46839501,2676.4,2676.2,0.93411]
[1727115730053,1.46839501,2676.4,2676.3,1.6676]
[1727115730249,1.46839501,2676.4,2676.3,4.8754]
[1727115730455,1.46839501,2676.4,2676.3,45.6754]
[1727115730654,1.46839501,2676.4,2676.3,52.96627]
[1727115730951,1.84198501,2676.6,2676.5,0.3736]
[1727115731155,1.46823147,2676.6,2676.5,0.3736]
[1727115731355,1.84181147,2676.6,2676.5,0.3736]
[1727115731560,0.37358,2676.6,2676.5,0.7633]
[1727115731759,1.84157417,2676.7,2676.6,0.37358]
[1727115731957,0.37358,2676.7,2676.6,0.37358]
[1727115732467,0.93404,2676.4,2676.2,0.97238334]
[1727115732658,0.93404,2676.4,2676.0,3.2078]
[1727115732659,0.3571,2676.3,2676.0,3.2078]
[1727115732965,0.3571,2676.3,2676.1,0.37364]
[1727115732966,0.37365,2676.2,2676.1,0.37364]
[1727115733166,0.37365,2676.2,2676.1,0.38364]
[1727115733561,0.73074,2676.3,2676.2,0.37364]
[1727115735568,1.46799417,2676.4,2676.3,0.37363]
[1727115735764,1.84160417,2676.6,2676.2,5.10188334]
[1727115736070,0.37361,2676.6,2676.5,0.37359]
[1727115736756,1.84160417,2676.6,2676.5,0.37359]
[1727115736959,0.37361,2676.4,2676.3,3.95312]
[1727115737153,0.37361,2676.4,2676.3,3.58143]
[1727115737761,0.37361,2676.4,2676.3,3.2078]
[1727115737964,0.37363,2676.3,2676.2,0.37363]
[1727115738370,0.37364,2676.3,2676.2,0.37363]
[1727115739467,1.46799417,2676.5,2676.1,1.34278334]
[1727115739776,1.46799417,2676.6,2676.5,0.3736]
[1727115739958,0.37359,2676.6,2676.5,0.3736]
[1727115740468,1.84230813,2676.6,2676.5,0.3736]
[1727115742265,1.46871813,2676.6,2676.5,0.3736]
[1727115742575,1.84229813,2676.6,2676.5,0.3736]
[1727115744064,1.84229813,2676.7,2676.6,0.37358]
[1727115744665,1.46871813,2676.7,2676.6,0.37358]
[1727115744863,1.84227813,2676.8,2676.7,0.37357]
[1727115745063,1.84227813,2676.8,2676.7,0.75697]
[1727115746267,0.37356,2676.8,2676.7,0.75697]
[1727115747572,0.37355,2676.9,2676.8,0.37354]
[1727115747779,0.37355,2676.9,2676.8,0.76064]
[1727115747965,0.37354,2677.0,2676.9,0.37353]
[1727115749273,0.3915,2677.1,2677.0,0.37353]
[1727115749459,0.37351,2677.1,2677.0,0.37353]
[1727115749663,1.84220813,2677.3,2677.2,0.3735]
[1727115749865,0.37349,2677.3,2677.2,3.5813]
[1727115750369,0.93367,2677.5,2677.2,3.5813]
[1727115750573,0.93367,2677.5,2677.3,0.74117]
[1727115750574,0.37349,2677.4,2677.3,0.74117]
[1727115750872,0.37349,2677.4,2677.3,1.12207]
[1727115751060,1.30718,2677.4,2677.3,0.7486]
[1727115751265,1.30718,2677.4,2677.2,0.3735]
[1727115751266,0.37349,2677.3,2677.2,0.3735]
[1727115751460,0.3735,2677.2,2677.1,0.7377]
[1727115751665,0.37351,2677.1,2677.0,44.38132]
[1727115753978,0.37351,2677.1,2677.0,3.58132]
[1727115754272,0.3804,2677.2,2677.1,0.3735]
[1727115754273,0.37351,2677.2,2677.1,0.3735]
[1727115754870,0.37351,2677.1,2677.0,44.38132]
[1727115756163,0.37351,2677.1,2677.0,3.58132]
[1727115758271,0.36351,2677.1,2677.0,3.58132]
[1727115759874,1.2973,2677.1,2677.0,3.2078]
[1727115760177,0.37355,2676.9,2676.8,0.37355]
[1727115760367,0.37355,2676.9,2676.8,41.17355]
[1727115761673,0.37355,2676.9,2676.8,40.8]
[1727115761880,0.37356,2676.8,2676.7,3.58137]
[1727115762372,0.37356,2676.8,2676.7,44.38137]
[1727115762577,0.73585,2676.9,2676.8,0.37356]
[1727115764084,0.37356,2676.8,2676.7,3.2078]
[1727115764281,3.5701,2676.9,2676.2,0.97238334]
[1727115764583,0.37364,2676.3,2676.2,0.37364]
[1727115764775,0.93393,2676.7,2676.1,44.1591]
[1727115764973,0.3736,2676.5,2676.4,0.3736]
[1727115765376,0.93393,2676.7,2676.1,44.1591]
[1727115765584,0.3736,2676.5,2676.4,0.37361]
[1727115766374,0.37361,2676.4,2676.3,3.58142]
[1727115767584,0.37361,2676.5,2676.4,0.37361]
[1727115769583,5.97269813,2676.9,2676.3,3.2078]
[1727115769782,0.37359,2676.6,2676.5,0.37359]
[1727115769986,0.37361,2676.4,2676.3,3.58142]
[1727115770884,1.83501813,2676.8,2676.3,3.2078]
[1727115771182,1.83501813,2676.8,2676.5,0.37359]
[1727115771183,0.37359,2676.6,2676.5,0.37359]
[1727115774689,0.37358,2676.7,2676.6,0.37357]
[1727115780696,0.37356,2676.8,2676.7,0.37357]
[1727115780887,0.37355,2676.9,2676.8,0.37356]
[1727115782596,1.35086565,2677.0,2676.9,0.37354]
[1727115782787,0.37353,2677.0,2676.9,0.37354]
[1727115783183,0.37355,2676.9,2676.8,0.37355]
[1727115783695,0.01,2677.1,2677.0,0.37353]
[1727115783994,0.01,2677.1,2677.0,1.30736]
[1727115784187,0.01,2677.1,2677.0,4.10873]
[1727115784886,0.01,2677.1,2677.0,5.04256]
[1727115785389,0.01,2677.1,2677.0,4.10873]
[1727115785588,0.01,2677.1,2677.0,44.90873]
[1727115785790,0.01,2677.1,2677.0,45.84256]
[1727115785991,0.01,2677.1,2677.0,49.77345199]
[1727115786194,0.01,2677.1,2677.0,49.18956]
[1727115789489,0.01,2677.1,2677.0,51.80956]
[1727115793996,0.01,2677.1,2677.0,0.37353]
[1727115795394,0.38351,2677.1,2677.0,0.37353]
[1727115795993,0.01,2677.1,2677.0,0.37353]
[1727115796394,0.38351,2677.1,2677.0,0.37353]
[1727115798598,0.01,2677.1,2677.0,0.37353]
[1727115798793,0.38351,2677.1,2677.0,0.37353]
[1727115799517,0.01,2677.1,2677.0,0.37353]
[1727115799895,0.01,2677.1,2677.0,2.24119]
[1727115800106,0.01,2677.1,2677.0,5.97639]
[1727115800497,0.01,2677.1,2677.0,6.5602853]
[1727115801199,0.01,2677.1,2677.0,5.97639]
[1727115802806,0.01,2677.1,2677.0,6.56028075]
[1727115803007,0.01,2677.1,2677.0,6.56027692]
[1727115803616,0.01,2677.1,2677.0,4.69261692]
[1727115803908,0.38351,2677.1,2677.0,3.71953]
[1727115805101,0.01,2677.1,2677.0,3.71953]
[1727115805510,0.38351,2677.1,2677.0,0.37353]
[1727115805805,0.37353,2677.0,2676.9,3.58134]
[1727115806410,1.30736,2677.0,2676.9,3.2078]
[1727115807209,2.24119,2677.0,2676.9,3.2078]
[1727115807806,0.37356,2676.8,2676.7,0.37357]
[1727115808606,0.37356,2676.8,2676.7,3.58137]
[1727115808808,0.37356,2676.8,2676.7,3.94557]
[1727115809207,0.74175,2676.9,2676.8,0.37356]
[1727115809404,0.74175,2676.9,2676.8,0.75906]
[1727115810019,0.01,2677.1,2677.0,0.37353]
[1727115810020,0.38352,2677.1,2677.0,0.37353]
[1727115810204,0.38352,2677.1,2677.0,2.99353]
[1727115811817,0.01,2677.1,2677.0,2.99353]
[1727115812004,0.01,2677.1,2676.8,1.67798]
[1727115812005,0.01,2677.1,2676.9,0.37353]
[1727115812409,0.37354,2677.0,2676.9,0.37353]
[1727115813814,0.37354,2676.9,2676.8,0.75905]
[1727115814012,0.75874,2676.9,2676.8,0.75905]
[1727115815915,1.30746,2676.8,2676.7,3.2078]
[1727115816119,0.3736,2676.5,2676.4,0.3736]
[1727115816519,0.3736,2676.5,2676.4,0.95765099]
[1727115816709,0.3736,2676.5,2676.4,0.3736]
[1727115817418,0.37361,2676.4,2676.3,6.95302]
[1727115818522,0.3742,2676.5,2676.3,6.95302]
[1727115818523,0.7478,2676.5,2676.4,0.37361]
[1727115818922,0.3736,2676.5,2676.4,0.37361]
[1727115820338,1.129,2676.7,2676.3,7.55178334]
[1727115820635,0.37357,2676.8,2676.7,0.37356]
[1727115822735,1.3075,2676.7,2676.6,3.2078]
[1727115823139,6.95476565,2676.7,2676.6,3.2078]
[1727115823335,6.95476565,2676.7,2676.3,1.12522]
[1727115823336,0.37361,2676.4,2676.3,1.12522]
[1727115825849,0.37361,2676.5,2676.4,0.3736]
[1727115827035,0.37359,2676.7,2676.6,0.37357]
[1727115827349,0.37359,2676.7,2676.6,2.99357]
[1727115830643,0.37357,2676.8,2676.7,0.37356]
[1727115830847,0.37355,2676.9,2676.8,0.37354]
[1727115831058,0.37355,2676.9,2676.8,0.76324]
[1727115831434,0.37355,2676.9,2676.8,3.38324]
[1727115832147,0.98733565,2677.1,2676.8,3.0097]
[1727115832347,0.38353,2677.1,2677.0,0.37353]
[1727115833143,0.01,2677.1,2677.0,2.99353]
[1727115833449,0.38351,2677.1,2677.0,2.99353]
[1727115833649,0.01,2677.1,2677.0,2.99353]
[1727115834245,0.38351,2677.1,2677.0,2.99353]
[1727115834441,0.01,2677.1,2677.0,2.99353]
[1727115835848,0.01,2677.1,2677.0,3.92736]
[1727115836149,0.01,2677.1,2677.0,4.51127147]
[1727115836544,0.01,2677.1,2677.0,4.51128128]
[1727115836851,0.01,2677.1,2677.0,3.5774342]
[1727115837047,0.01,2677.1,2677.0,2.99353]
[1727115837938,0.01,2677.1,2677.0,3.57746681]
[1727115838343,0.38351,2677.1,2677.0,2.99353]
[1727115838542,0.37353,2677.0,2676.9,0.97238334]
[1727115838845,0.37353,2677.0,2676.9,0.37353]
[1727115841344,0.37353,2677.0,2676.8,3.2078]
[1727115841345,0.37354,2676.9,2676.8,3.2078]
[1727115841553,0.37357,2676.7,2676.6,0.37358]
[1727115841738,0.37357,2676.7,2676.6,0.95760649]
[1727115842137,0.37357,2676.7,2676.6,1.92998983]
[1727115842341,0.37357,2676.7,2676.6,0.95760649]
[1727115842550,0.37357,2676.8,2676.7,0.37356]
[1727115843555,1.30747,2676.8,2676.7,0.37356]
[1727115843945,0.3849,2676.9,2676.8,0.37356]
[1727115843946,0.37355,2676.9,2676.8,0.37356]
[1727115845453,0.93386,2677.0,2676.9,0.37353]
[1727115845454,0.37354,2677.0,2676.9,0.37353]
[1727115845857,0.38352,2677.1,2677.0,0.37353]
[1727115846254,0.01,2677.1,2677.0,0.37353]
[1727115846455,0.01,2677.1,2677.0,0.76473]
[1727115846656,0.38351,2677.1,2677.0,0.76473]
[1727115846851,0.01,2677.1,2677.0,1.69856]
[1727115847255,0.01,2677.1,2677.0,2.67094334]
[1727115847443,0.01,2677.1,2677.0,1.69856]
[1727115847649,0.01,2677.1,2677.0,3.25486817]
[1727115848051,0.01,2677.1,2677.0,4.42895188]
[1727115848250,0.01,2677.1,2677.0,3.25486817]
[1727115848452,0.01,2677.1,2677.0,4.42886597]
[1727115848669,0.01,2677.1,2677.0,3.84494114]
[1727115848852,0.01,2677.1,2677.0,4.42885134]
[1727115849261,0.01,2677.1,2677.0,3.25485354]
[1727115849757,0.01,2677.1,2677.0,4.42901086]
[1727115850159,0.01,2677.1,2677.0,3.45662752]
[1727115851160,0.01,2677.1,2677.0,4.42577115]
[1727115851549,0.01,2677.1,2677.0,3.25161383]
[1727115852455,0.01,2677.1,2677.0,4.91485058]
[1727115852757,0.01,2677.1,2677.0,2.2824702]
[1727115852951,0.01,2677.1,2677.0,3.25111618]
[1727115853359,0.01,2677.1,2677.0,4.18494618]
[1727115853663,0.37345,2677.6,2677.5,0.37346]
[1727115854354,0.37345,2677.6,2677.5,41.17346]
[1727115854553,0.37345,2677.6,2677.5,44.38126]
[1727115854851,0.97733565,2677.7,2677.6,0.37345]
[1727115855053,0.37344,2677.7,2677.6,0.37343]
[1727115855256,0.37344,2677.7,2677.6,41.17343]
[1727115856053,0.37344,2677.7,2677.6,40.8]
[1727115856054,1.30703,2677.7,2677.6,40.8]
[1727115856255,0.37345,2677.6,2677.5,3.2078]
[1727115856456,0.73645,2677.6,2677.5,3.2078]
[1727115856656,1.67007,2677.6,2677.5,3.2078]
[1727115857255,0.37346,2677.5,2677.4,0.37346]
[1727115857562,0.74396,2677.5,2677.4,0.37346]
[1727115858353,0.37347,2677.4,2677.3,0.73658]
[1727115858863,0.74397,2677.5,2677.4,0.37347]
[1727115860062,0.37347,2677.5,2677.4,0.37347]
[1727115860263,0.37345,2677.6,2677.5,0.37345]
[1727115860465,0.37344,2677.7,2677.6,0.37343]
[1727115861761,1.91085565,2677.9,2677.8,0.37342]
[1727115861762,1.35075565,2677.9,2677.8,0.37342]
[1727115861962,0.37342,2677.9,2677.8,0.37342]
[1727115862468,0.74,2678.0,2677.9,0.3734]
[1727115862659,0.37338,2678.1,2678.0,0.37339]
[1727115862858,0.37338,2678.1,2678.0,0.73079]
[1727115863265,0.37337,2678.2,2678.1,0.37338]
[1727115863669,0.37337,2678.2,2678.1,0.74208]
[1727115863860,4.10697,2678.2,2678.1,0.74208]
[1727115864059,0.37337,2678.2,2678.1,0.74208]
[1727115865066,4.10697,2678.2,2678.1,0.74208]
[1727115865454,4.10697,2678.2,2678.1,0.3687]
[1727115865660,0.37338,2678.1,2678.0,0.3574]
[1727115865866,0.37338,2678.1,2678.0,0.73079]
[1727115866854,0.93345,2678.1,2677.9,0.3866]
[1727115867060,3.9638,2678.3,2677.8,0.37341]
[1727115867061,0.3734,2677.9,2677.8,0.37341]
[1727115867855,0.37342,2677.8,2677.7,4.33713]
[1727115868069,0.37342,2677.8,2677.7,3.9637]
[1727115868265,0.37342,2677.8,2677.7,0.7559]
[1727115868467,0.74672,2677.8,2677.7,1.12933]
[1727115869363,1.69672,2677.9,2677.8,0.37342]
[1727115869364,0.76801,2677.9,2677.8,0.37342]
[1727115869758,0.76801,2677.9,2677.7,0.7559]
[1727115869759,0.37342,2677.8,2677.7,1.12932]
[1727115873169,0.37341,2677.9,2677.8,0.37342]
[1727115875073,1.30693,2677.9,2677.8,0.37342]
[1727115875573,2.28426565,2677.9,2677.8,0.37342]
[1727115875768,1.35073565,2677.9,2677.8,0.37342]
[1727115875966,1.35072565,2678.0,2677.9,0.3734]
[1727115876163,0.37338,2678.1,2678.0,0.37339]
[1727115876867,1.30683,2678.1,2678.0,0.37339]
[1727115877164,0.37338,2678.1,2678.0,0.37339]
[1727115878771,1.35071565,2678.1,2678.0,0.37339]
[1727115879160,0.37338,2678.1,2678.0,0.37339]
[1727115880668,0.36338,2678.1,2678.0,0.37339]
[1727115881266,1.29683,2678.1,2678.0,0.37339]
[1727115881467,1.29683,2678.1,2677.9,1.5831]
[1727115881468,1.91078565,2678.1,2677.9,1.21]
[1727115881774,2.28420565,2678.0,2677.9,1.21]
[1727115882278,2.28420565,2678.0,2677.9,1.5834]
[1727115882571,1.30687,2678.0,2677.9,1.21]
[1727115883576,1.30687,2678.0,2677.8,0.37341]
[1727115883577,0.3734,2677.9,2677.8,0.37341]
[1727115883970,1.30697,2677.8,2677.7,3.2078]
[1727115884175,1.30697,2677.8,2677.7,3.5836]
[1727115884477,0.37342,2677.8,2677.7,3.95703]
[1727115884878,1.30697,2677.8,2677.7,3.95703]
[1727115886567,0.37342,2677.8,2677.7,5.16703]
[1727115887373,0.37341,2677.9,2677.8,0.3734]
[1727115889679,1.35074565,2677.9,2677.8,0.3734]
[1727115890076,1.35074565,2677.9,2677.8,0.37342]
[1727115890378,1.35074565,2677.9,2677.7,1.95922]
[1727115890379,0.37342,2677.8,2677.7,1.95922]
[1727115890582,1.35109162,2677.8,2677.7,1.95922]
[1727115891076,0.97767162,2677.8,2677.7,1.95922]
[1727115891386,1.35108162,2677.9,2677.8,0.37342]
[1727115891575,1.35131871,2677.9,2677.8,0.37342]
[1727115891775,1.35131542,2677.9,2677.8,0.37342]
[1727115891979,0.37341,2677.9,2677.8,0.37342]
[1727115892188,1.84212813,2677.9,2677.8,0.37342]
[1727115894384,1.84212813,2677.9,2677.7,0.3758]
[1727115894385,0.37342,2677.8,2677.7,0.3758]
[1727115894579,1.84099218,2677.8,2677.7,0.74923]
[1727115895184,2.77454218,2677.8,2677.7,0.3758]
[1727115895376,2.77454218,2677.8,2677.3,4.5494744]
[1727115895377,0.37345,2677.6,2677.3,4.5494744]
[1727115895580,1.84130559,2677.4,2677.3,3.2078]
[1727115895978,0.73987,2677.4,2677.3,3.2078]
[1727115896177,5.40876,2677.4,2677.3,3.2078]
[1727115897684,0.73987,2677.4,2677.3,4.4178]
[1727115897877,0.37347,2677.4,2677.3,4.4178]
[1727115898795,0.37347,2677.4,2677.3,4.7949]
[1727115899390,0.37347,2677.4,2677.3,5.16839]
[1727115899592,0.37347,2677.4,2677.3,5.75233013]
[1727115900395,1.35205934,2677.5,2677.4,0.37347]
[1727115900585,0.37347,2677.4,2677.3,1.5871]
[1727115900893,0.37347,2677.4,2677.3,2.17100981]
[1727115901487,0.37347,2677.4,2677.3,1.5871]
[1727115901689,0.37347,2677.4,2677.3,2.17100211]
[1727115902393,1.35205934,2677.4,2677.3,1.5871]
[1727115902888,0.37347,2677.4,2677.3,1.5871]
[1727115903194,0.37347,2677.4,2677.3,1.96059]
[1727115904289,0.97858934,2677.5,2677.4,0.37347]
[1727115904489,0.37345,2677.6,2677.5,0.37346]
[1727115904692,0.37345,2677.6,2677.5,1.58346]
[1727115905017,0.97858934,2677.6,2677.5,1.58346]
[1727115905495,1.35202934,2677.7,2677.6,0.37345]
[1727115905692,1.84135547,2677.7,2677.6,0.37345]
[1727115906292,1.84135547,2677.7,2677.6,0.76175]
[1727115911800,1.35172764,2677.7,2677.6,0.76175]
[1727115912196,1.35176871,2677.7,2677.6,0.76175]
[1727115912399,1.35176871,2677.7,2677.6,0.3883]
[1727115912604,0.37345,2677.6,2677.5,1.58345]
[1727115912804,1.35177871,2677.6,2677.5,0.37346]
[1727115914094,0.37345,2677.6,2677.5,0.37346]
[1727115914501,0.37346,2677.5,2677.4,1.5819]
[1727115914703,0.37346,2677.5,2677.4,1.95537]
[1727115915505,0.97832871,2677.6,2677.5,0.37346]
[1727115915709,0.97832871,2677.7,2677.6,0.37345]
[1727115915907,0.98832871,2677.8,2677.7,0.37343]
[1727115916109,0.38342,2677.8,2677.7,1.94773]
[1727115916605,3.7444,2677.8,2677.4,1.3400944]
[1727115916920,0.37346,2677.5,2677.4,0.3719]
[1727115917108,0.37347,2677.4,2677.3,3.5849]
[1727115917302,1.35179871,2677.4,2677.3,0.3771]
[1727115917500,0.37347,2677.4,2677.3,0.75059]
[1727115917801,1.35179871,2677.5,2677.4,0.37347]
[1727115918008,0.37346,2677.5,2677.4,1.58347]
[1727115918210,1.35178871,2677.5,2677.4,1.58347]
[1727115918399,0.37346,2677.5,2677.4,1.58347]
[1727115919010,0.37346,2677.5,2677.4,1.21]
[1727115919306,0.37347,2677.4,2677.3,1.96058]
[1727115919514,0.37347,2677.4,2677.3,1.21]
[1727115920013,0.37347,2677.4,2676.9,40.8]
[1727115920014,0.37353,2677.0,2676.9,40.8]
[1727115920311,0.37356,2676.8,2676.7,3.962]
[1727115920513,0.3736,2676.5,2676.4,2.5517944]
[1727115920707,0.37359,2676.6,2676.4,43.1378]
[1727115921006,0.37359,2676.6,2676.5,0.58407581]
[1727115921211,0.37359,2676.6,2676.5,0.3736]
[1727115921604,2.07014078,2676.8,2676.4,43.1378]
[1727115922013,0.3736,2676.6,2676.4,43.1378]
[1727115922209,0.3736,2676.5,2676.4,0.3731]
[1727115922413,0.37363,2676.3,2676.2,0.37363]
[1727115922613,0.37363,2676.3,2676.0,8.00537501]
[1727115922614,0.37365,2676.1,2676.0,0.37367]
[1727115922814,1.91235078,2676.3,2675.8,2.62]
[1727115923002,1.91235078,2676.3,2676.0,0.37366]
[1727115923003,0.37366,2676.1,2676.0,0.37366]
[1727115923207,1.33668078,2676.4,2676.1,0.37364]
[1727115923510,0.37364,2676.2,2676.1,0.37364]
[1727115928319,0.37364,2676.3,2676.1,0.37364]
[1727115928617,0.37362,2676.4,2676.2,0.76613]
[1727115929025,0.37363,2676.3,2676.2,0.76613]
[1727115929216,0.37363,2676.3,2676.2,1.12303]
[1727115929616,0.37363,2676.3,2676.2,3.74303]
[1727115929819,0.37363,2676.3,2676.2,3.3694]
[1727115930017,0.37363,2676.3,2676.2,3.74304]
[1727115930919,0.3736,2676.5,2676.4,0.37361]
[1727115931520,0.3736,2676.5,2676.4,41.17361]
[1727115932424,0.3736,2676.5,2676.4,0.37361]
[1727115932821,4.1096,2676.5,2676.4,0.37361]
[1727115933017,0.3736,2676.5,2676.4,0.37361]
[1727115933643,0.37359,2676.6,2676.5,0.37359]
[1727115934520,0.3736,2676.5,2676.4,0.3736]
[1727115934726,0.37359,2676.6,2676.5,0.3736]
[1727115935127,0.3736,2676.5,2676.4,0.3736]
[1727115936122,0.37359,2676.6,2676.5,0.37359]
[1727115937329,0.3566,2676.8,2676.4,2.62]
[1727115937524,0.37353,2677.1,2677.0,0.37352]
[1727115938031,0.37353,2677.1,2677.0,2.99352]
[1727115938528,0.37353,2677.1,2677.0,0.37352]
[1727115941035,0.73201,2677.2,2677.1,0.37351]
[1727115941529,0.37352,2677.1,2677.0,0.37353]
[1727115942134,0.37352,2677.1,2677.0,0.37352]
[1727115943838,0.73201,2677.2,2677.1,0.37351]
[1727115944323,0.73201,2677.2,2677.1,1.58351]
[1727115944628,1.91187078,2677.7,2677.1,2.14379]
[1727115944829,0.37346,2677.6,2677.5,1.21]
[1727115945036,0.37346,2677.6,2677.5,0.3682]
[1727115945037,5.04148,2677.6,2677.5,0.3682]
[1727115945231,0.37347,2677.4,2677.3,1.58349]
[1727115945724,0.37349,2677.3,2677.2,3.9489]
[1727115945920,0.37349,2677.3,2677.2,3.5807]
[1727115946121,0.3735,2677.2,2677.1,1.9457]
[1727115946322,0.37353,2677.0,2676.9,3.2078]
[1727115946831,0.37353,2677.0,2676.9,3.58134]
[1727115947035,1.30736,2677.0,2676.9,3.2078]
[1727115947234,0.37357,2676.7,2676.6,3.5807]
[1727115947425,1.3075,2676.7,2676.6,3.5807]
[1727115947929,0.37357,2676.7,2676.6,5.16428]
[1727115948136,0.37357,2676.7,2676.6,4.7907]
[1727115948525,1.3075,2676.7,2676.6,4.7907]
[1727115949536,0.37361,2676.4,2676.3,0.73582]
[1727115949727,0.37361,2676.4,2676.3,2.31442]
[1727115950229,0.37361,2676.5,2676.4,0.3736]
[1727115950929,0.37361,2676.4,2676.3,2.31442]
[1727115953027,0.37363,2676.3,2676.2,3.2078]
[1727115953231,0.37366,2676.1,2676.0,1.58367]
[1727115954031,0.37366,2676.1,2676.0,0.37367]
[1727115954934,0.37367,2676.0,2675.9,1.50728]
[1727115955130,0.37367,2676.0,2675.9,1.1336]
[1727115955333,1.30702,2676.2,2675.6,0.37371]
[1727115955334,0.37371,2675.8,2675.6,0.37371]
[1727115955536,0.93416,2676.1,2675.6,0.3903]
[1727115955537,0.37371,2675.7,2675.6,0.3903]
[1727115957231,1.30799,2675.7,2675.6,0.3903]
[1727115957535,0.37375,2675.4,2675.3,3.97137]
[1727115957740,0.37375,2675.4,2675.3,3.5976]
[1727115958030,1.30814,2675.4,2675.3,3.2078]
[1727115960534,0.37375,2675.5,2675.3,3.58156]
[1727115960739,0.37375,2675.5,2675.4,0.37375]
[1727115960929,0.37375,2675.5,2675.3,3.58156]
[1727115961128,0.37375,2675.4,2675.3,3.58156]
[1727115961840,0.37374,2675.5,2675.4,0.37375]
[1727115962043,0.37375,2675.4,2675.3,3.2078]
[1727115962546,0.37379,2675.1,2674.9,3.38701]
[1727115962728,0.37374,2675.5,2674.9,3.0132]
[1727115963040,0.37374,2675.5,2674.7,3.2078]
[1727115963041,0.37384,2674.8,2674.7,3.2078]
[1727115963537,1.30844,2674.8,2674.7,3.2078]
[1727115963740,14.61144,2674.8,2674.7,3.2078]
[1727115964042,0.37391,2674.3,2674.2,3.5689]
[1727115964337,0.37391,2674.3,2674.0,0.37394]
[1727115964338,0.37393,2674.1,2674.0,0.37394]
[1727115964540,2.02873,2674.5,2674.3,0.37391]
[1727115964734,0.37389,2674.4,2674.3,0.37389]
[1727115966746,0.37389,2674.4,2674.3,0.3739]
[1727115967237,0.37389,2674.5,2674.2,0.3733]
[1727115967434,0.37389,2674.5,2674.3,0.37391]
[1727115968533,0.37389,2674.5,2674.4,0.37389]
[1727115968732,0.37386,2674.7,2674.6,0.37386]
[1727115968930,2.02859,2674.9,2674.5,0.3912]
[1727115968931,0.37386,2674.6,2674.5,0.3912]
[1727115969344,0.37385,2674.7,2674.5,0.76507]
[1727115969540,0.37386,2674.6,2674.5,0.3912]
[1727115969741,0.37391,2674.3,2674.2,0.3733]
[1727115969937,1.30953,2674.5,2674.0,0.3912]
[1727115970139,0.7423,2674.4,2674.0,0.3912]
[1727115970341,0.37393,2674.1,2674.0,0.3912]
[1727115970641,0.37392,2674.2,2674.1,0.37393]
[1727115971236,0.37391,2674.3,2674.2,0.37392]
[1727115971441,0.37388,2674.5,2674.4,0.37389]
[1727115971946,0.93457,2674.9,2674.2,6.77258]
[1727115972134,0.37387,2674.6,2674.5,0.37387]